[Event "Croatian Team Cup Final 2022"]
[Site "Vodice"]
[Date "2022.05.22"]
[Round "6.16"]
[White "Sekelja, Marko"]
[Black "Sale, Srdjan"]
[Result "0-1"]
[ECO "B07"]
[WhiteElo "2102"]
[BlackElo "2356"]
[Annotator "TA"]
[PlyCount "116"]
[EventDate "2022.05.18"]
[EventType "team-tourn"]
[EventCountry "CRO"]
[SourceTitle "playchess.com"]
[Source "ChessBase"]
[SourceQuality "1"]
[TimeControl "40/5400+30:1800+30"]

{[%evp 21,116,-63,-71,-61,-34,-43,-50,-46,-37,-63,-33,-27,-29,-30,-13,-83,-72,-124,-134,-129,-60,-56,-33,-56,-40,-45,0,0,0,-58,-65,-64,-64,-62,-43,-43,-43,-46,-38,-46,0,-29,-18,-60,0,-81,-76,-163,-87,-89,-93,-104,-97,-102,-93,-170,-170,-164,-167,-143,-117,-235,-142,-162,-155,-326,-144,-158,-145,-188,-173,-278,-275,-248,-264,-347,-344,-354,-337,-364,-360,-346,-257,-257,-257,-257,-254,-287,-285,-335,-332,-868,-842,-916,-4092,-29981,-29982]} 1. e4 {[%emt 0:00:09]} g6 {[%emt 0:00:22]} 2. Ne2 {[%emt 0:00:39]} Bg7 {[%emt 0:00:26]} 3. d4 {[%emt 0:00:36]} d6 {[%emt 0:00:12]} 4. Nbc3 {[%emt 0:05:37]} Nf6 {[%emt 0:02:02]} 5. g3 {[%emt 0:00:55]} O-O {[%emt 0:00:15]} 6. Bg2 {[%emt 0:00:03]} e5 {[%emt 0:00:51]} 7. dxe5 {[%emt 0:02:14]} dxe5 {[%emt 0:00:43]} 8. Qxd8 {[%emt 0:00:09]} Rxd8 {[%emt 0:00:01]} 9. Bg5 {[%emt 0:01:01]} c6 {[%emt 0:00:30]} 10. O-O {[%emt 0:00:26]} h6 {[%emt 0:00:07]} 11. Bxf6 {[%emt 0:00:14]} Bxf6 {[%emt 0:00:05]} 12. Rad1 {[%emt 0:00:20] B07: Pirc Defence: Miscellaneous Systems.} Re8 {[%emt 0:00:04]} 13. f4 {[%emt 0:07:35] [#]} Na6 $146 {[%emt 0:04:21][%cal Bb8a6,Ba6c5,Bc5d7,Bd7f6][%mdl 32]} ({Predecessor:} 13... Nd7 14. Bh3 Nc5 15. Bxc8 Raxc8 16. f5 Kg7 17. g4 Rcd8 18. Kg2 Rxd1 19. Rxd1 Rd8 20. Kf3 Rxd1 21. Nxd1 Bd8 {½-½ (21) Suder,R-Tarnowski,M Poland 1992}) 14. f5 {[%emt 0:01:43] Black is slightly better.} Be7 {[%emt 0:05:18]} 15. a3 {[%emt 0:00:37] Inhibits Nb4.} h5 {[%emt 0:02:44]} (15... Nc5 $5 {[%cal Ra7a5]}) 16. Nc1 {[%emt 0:05:57]} Nc5 {[%emt 0:04:34]} 17. b4 {[%emt 0:04:42]} Nd7 {[%emt 0:01:11]} 18. Bh3 {[%emt 0:07:51]} (18. Nb3 $11) 18... g5 $17 {[%emt 0:02:13][%cal Bg6g5,Bg5g4][%mdl 32]} 19. Nd3 {[%emt 0:06:05]} ({White should play} 19. Nb3) 19... g4 {[%emt 0:02:40]} 20. Bg2 {[%emt 0:00:27]} Bg5 {[%emt 0:00:55]} ({Better is} 20... Nb6 $17 21. f6 (21. Nxe5 $2 Bf6 $19) 21... Bf8) 21. h3 $1 $15 {[%emt 0:01:06]} gxh3 {[%emt 0:04:53]} 22. Bf3 {[%emt 0:01:17]} Nf6 {[%emt 0:00:32]} (22... h4 23. gxh4 Bxh4 24. Kh2 $11) 23. Kh2 {[%emt 0:00:23]} Bxf5 {[%emt 0:06:46]} 24. exf5 {[%emt 0:15:02] Strongly threatening Nc5.} e4 {[%emt 0:00:10]} 25. Be2 {[%emt 0:00:29]} (25. Nxe4 $11 Nxe4 26. Bxh5) 25... exd3 {[%emt 0:00:21]} 26. Rxd3 {[%emt 0:00:14]} Re5 {[%emt 0:15:19]} 27. Kxh3 {[%emt 0:06:56][%cal Oe2h5]} Rae8 {[%emt 0:01:23]} 28. Bxh5 {[%emt 0:00:29]} Nxh5 {[%emt 0:09:54]} 29. Kg4 {[%emt 0:00:59][%csl LRg5,LRh5] [#]} Nxg3 $1 {[%emt 0:02:26]} 30. Rxg3 {[%emt 0:00:14]} Bf6 {[%emt 0:00:20]} (30... Bh6 $15) 31. Rd1 {[%emt 0:04:24]} Kf8 {[%emt 0:01:43]} 32. Rd7 {[%emt 0:08:29]} (32. Kf4 {with more complications.} Bg7 33. Rh1 R5e7 34. Rd3) 32... Re3 {[%emt 0:08:34]} (32... Re1 $15) 33. Rd3 {[%emt 0:01:19]} (33. Rxe3 $11 {remains equal.} Rxe3 34. Na4) 33... Re1 $1 $17 {[%emt 0:00:58]} 34. Rd7 {[%emt 0:03:17] [#]} (34. Nd1 $17) 34... Be5 {[%emt 0:05:05]} (34... Rf1 $1 $19 35. Rxb7 Ree1) 35. Rgd3 {[%emt 0:01:59]} Re7 $36 {[%emt 0:01:13][%mdl 2048] Black is in control.} 36. Na4 {[%emt 0:08:44]} b6 {[%emt 0:03:25] Inhibits Nc5.} 37. Rd8+ {[%emt 0:00:17]} Kg7 {[%emt 0:00:00]} 38. Rc8 {[%emt 0:00:17]} (38. Nc3 $17) 38... Re4+ $19 {[%emt 0:01:01]} 39. Kh3 {[%emt 0:02:46]} Rc4 {[%emt 0:00:32]} 40. c3 {[%emt 0:00:00]} c5 {[%emt 0:00:00]} 41. Rc6 {[%emt 0:04:00]} (41. Nb2 $17 Rxc3 42. bxc5) 41... Rf4 {[%emt 0:13:23]} 42. Rg3+ {[%emt 0:06:39] [#]} Kh7 $1 {[%emt 0:00:10] And now ...cxb4 would win.} 43. Rg5 $2 {[%emt 0:01:02] This move loses the game for White.} (43. Rg4 $17) 43... Rc7 {[%emt 0:04:29]} (43... Rd7 $19 {is more deadly. White must now prevent ...Rd3+.} 44. Rh5+ Kg8) 44. Rxc7 $17 {[%emt 0:05:02]} Bxc7 {[%emt 0:00:03][%mdl 4096] Endgame KRB-KRN} 45. f6 {[%emt 0:00:07]} Rxf6 {[%emt 0:01:27]} 46. bxc5 {[%emt 0:01:15]} (46. Kg2 $142) 46... b5 $19 {[%emt 0:00:40]} 47. Nb2 {[%emt 0:00:27]} Rf3+ {[%emt 0:00:18]} 48. Kg4 {[%emt 0:00:29]} Rxc3 {[%emt 0:00:14]} 49. Rd5 {[%emt 0:01:15]} Kg6 {[%emt 0:03:08] ( -> ...f5+)} ({Wrong is} 49... Rxa3 $2 50. Kf5 $19) 50. Nd3 {[%emt 0:01:03]} f5+ {[%emt 0:03:02]} ({Don't go for} 50... Rxa3 $2 51. Nf4+ Kf6 52. Rf5+ Ke7 53. Nd5+ Kd7 54. c6+ Kxc6 55. Nxc7 Kxc7 56. Rxb5 $19) 51. Kf3 {[%emt 0:00:19]} Rxa3 {[%emt 0:00:46]} 52. Rd7 {[%emt 0:01:14] [#]} a5 $1 {[%emt 0:08:11][%cal Ob5b4]} 53. Ke2 {[%emt 0:00:43]} Bg3 {[%emt 0:03:01]} 54. Kd2 {[%emt 0:01:46]} b4 {[%emt 0:01:25][%cal Bb5b4,Bb4b3][%mdl 32]} 55. Ra7 {[%emt 0:01:42]} Ra2+ {[%emt 0:01:42]} 56. Kc1 $2 {[%emt 0:00:19]} (56. Ke3 Bh2 57. Kf3) 56... b3 {[%emt 0:00:27]} 57. Kb1 {[%emt 0:02:21]} Rd2 {[%emt 0:01:01]} 58. Nb2 {[%emt 0:00:32]} Be5 {[%emt 0:00:24] Weighted Error Value: White=0.57/Black=0.16 (very precise)} 0-1

[Event "Croatian Team Cup Final 2022"]
[Site "Vodice"]
[Date "2022.05.22"]
[Round "6.18"]
[White "Plenca, Julijan"]
[Black "Anic, Darko"]
[Result "1-0"]
[ECO "C56"]
[WhiteElo "2443"]
[BlackElo "2390"]
[Annotator "TA"]
[PlyCount "83"]
[EventDate "2022.05.18"]
[EventType "team-tourn"]
[EventCountry "CRO"]
[SourceTitle "playchess.com"]
[Source "ChessBase"]
[SourceQuality "1"]
[TimeControl "40/5400+30:1800+30"]

{[%evp 22,83,11,-30,-38,-44,-20,-21,-22,-25,-25,-28,0,-5,21,7,16,0,0,0,0,0,0,0,0,0,14,21,47,42,117,124,156,38,43,37,37,31,85,75,118,74,144,135,138,124,147,96,102,102,130,148,181,129,194,130,179,52,52,50,55,55,45,-1222]} 1. e4 {[%emt 0:00:03]} e5 {[%emt 0:00:16]} 2. Nf3 {[%emt 0:00:06]} Nc6 {[%emt 0:00:11]} 3. Bc4 {[%emt 0:00:17]} Nf6 {[%emt 0:00:16]} 4. d4 {[%emt 0:00:08]} exd4 {[%emt 0:00:13]} 5. e5 {[%emt 0:00:04]} d5 {[%emt 0:00:15]} 6. Bb5 {[%emt 0:00:04]} Ne4 {[%emt 0:00:13]} 7. Nxd4 {[%emt 0:00:07]} Bc5 {[%emt 0:02:56]} 8. Be3 {[%emt 0:00:05]} Bxd4 {[%emt 0:01:18]} 9. Qxd4 {[%emt 0:01:23]} O-O {[%emt 0:00:18]} 10. Bxc6 {[%emt 0:00:38]} bxc6 {[%emt 0:00:08]} 11. O-O {[%emt 0:00:58]} c5 {[%emt 0:26:10]} 12. Qd1 {[%emt 0:00:26]} (12. Qd3 $5 {[%cal Rf2f3]}) 12... d4 {[%emt 0:04:09] C56: Two Knights: 4 d4 exd4 5 0-0 Nxe4.} 13. Bf4 {[%emt 0:04:25]} Bb7 {[%emt 0:01:33]} 14. f3 {[%emt 0:01:33]} Ng5 {[%emt 0:00:17] The position is equal.} 15. Nd2 {[%emt 0:00:41] [#]} Ne6 $146 {[%emt 0:01:58]} ({Predecessor:} 15... Rb8 16. Qe2 Re8 17. Rfe1 Bd5 18. b3 Ne6 19. Bg3 Qg5 20. Ne4 Qf5 21. Rad1 Bxe4 22. Qxe4 Qxe4 23. Rxe4 {1-0 (79) Von Hoesslin,H-Fels,K (1835) Ellwangen 1999}) 16. Bg3 {[%emt 0:00:34]} Qd5 {[%emt 0:09:00]} 17. b3 {[%emt 0:04:39]} Ba6 {[%emt 0:26:27]} 18. Rf2 {[%emt 0:00:53]} Rab8 {[%emt 0:00:48]} 19. f4 {[%emt 0:03:31]} f5 {[%emt 0:01:05]} 20. exf6 $1 {[%emt 0:00:05]} Rxf6 {[%emt 0:00:16]} 21. Qg4 {[%emt 0:00:33] And now f5 would win.} Rbf8 {[%emt 0:02:48]} 22. Re1 {[%emt 0:01:04]} Rf5 {[%emt 0:07:07]} 23. Qf3 {[%emt 0:09:44]} Qd7 {[%emt 0:05:59]} 24. Qe4 {[%emt 0:01:02]} Bc8 {[%emt 0:00:12]} 25. Nc4 {[%emt 0:01:44]} Qf7 {[%emt 0:00:39]} (25... Nd8 $14) 26. Ne5 $16 {[%emt 0:00:43]} Qf6 {[%emt 0:01:12][%cal Re6f4]} 27. Nd3 {[%emt 0:03:03]} (27. Qd5 $6 h5 $16) (27. Nc6 $1 $16 {[%cal Oe4f5]} g6 28. Nxa7) 27... h5 $14 {[%emt 0:00:29] aiming for ...h4.} 28. h3 {[%emt 0:01:47]} h4 {[%emt 0:00:08]} 29. Bh2 {[%emt 0:00:03]} Qd8 {[%emt 0:05:25]} (29... Nd8 $14) 30. Ne5 {[%emt 0:00:27]} Qe8 {[%emt 0:01:43] Prevents Ng6.} 31. Qf3 {[%emt 0:01:29]} R8f6 {[%emt 0:01:59]} (31... Nd8 $142) 32. Qa8 $1 $16 {[%emt 0:01:09]} Rf8 {[%emt 0:00:06]} (32... Nxf4 $2 33. Rxf4 Bd7 34. Qxe8+ Bxe8 35. Rxf5 Rxf5 36. Nf3 $18) 33. Qxa7 {[%emt 0:02:30]} g5 {[%emt 0:00:09]} 34. Qa8 {[%emt 0:01:01]} ({Better is} 34. Ng4 {Strongly threatening Nh6+.} Qg6 35. Qa8) 34... gxf4 {[%emt 0:00:09]} 35. Ng4 {[%emt 0:00:26] Nh6+ is the strong threat. White is much more active.} Qg6 {[%emt 0:00:17] Inhibits Nh6+.} 36. Qc6 {[%emt 0:02:22] Black must now prevent Rfe2.} Rg5 {[%emt 0:00:26]} 37. Ne5 {[%emt 0:04:08]} (37. a4 $18) 37... Qf5 {[%emt 0:00:58]} (37... Qf6 $16 38. Ng4 Qg6) 38. Nf3 {[%emt 0:00:14]} (38. Kh1 $18) 38... Rg7 {[%emt 0:00:33]} (38... Qd5 $16 39. Qxd5 Rxd5) 39. Re5 {[%emt 0:03:32]} ({White should play} 39. Kh1 $18) 39... Qxh3 $1 $14 {[%emt 0:00:18] [#] White is slightly better.} 40. Ng5 $1 {[%emt 0:00:00]} Qg4 {[%emt 0:01:50]} 41. Nxe6 {[%emt 0:00:01] Really sharp!} Rg6 $1 {[%cal Rc8e6] [#]} 42. Ng5 $2 {[%emt 0:00:16][%mdl 40960] Weighted Error Value: White=0.22 (precise) /Black=0.18 (very precise) . Loss on time!?} 1-0

[Event "Croatian Team Cup Final 2022"]
[Site "Vodice"]
[Date "2022.05.22"]
[Round "6.20"]
[White "Saric, Luka"]
[Black "Jusic, Zdenko"]
[Result "0-1"]
[ECO "A21"]
[WhiteElo "2169"]
[BlackElo "2236"]
[Annotator "TA"]
[PlyCount "48"]
[EventDate "2022.05.18"]
[EventType "team-tourn"]
[EventCountry "CRO"]
[SourceTitle "playchess.com"]
[Source "ChessBase"]
[SourceQuality "1"]
[TimeControl "40/5400+30:1800+30"]

{[%evp 9,48,3,8,-34,-29,-85,-81,-89,-66,-104,-89,-151,-115,-227,-178,-182,-163,-501,-515,-461,-327,-327,-337,-435,-193,-193,-189,-327,-311,-293,-226,-254,-251,-372,-371,-368,-364,-878,-818,-1332,-1330]} 1. c4 {[%emt 0:00:04]} e5 {[%emt 0:00:34][%cal Be7e5,Be5f4][%mdl 32]} 2. Nc3 {[%emt 0:00:16]} Bb4 {[%emt 0:00:05]} 3. d3 {[%emt 0:00:53]} Bxc3+ {[%emt 0:00:24]} 4. bxc3 {[%emt 0:00:02]} f5 {[%emt 0:00:28]} 5. e4 {[%emt 0:04:12]} d6 $1 {[%emt 0:01:56] [#]} 6. f4 $146 {[%emt 0:08:21] A21: English Opening: 1...e5 2 Nc3.} ({Predecessor:} 6. exf5 Bxf5 7. Qf3 Qc8 8. Rb1 Nc6 9. Qg3 Nge7 10. Qxg7 Rg8 11. Qh6 b6 12. Be2 {0-1 (89) Csom,I (2454)-Czebe,A (2481) Hungary 2004}) 6... exf4 {[%emt 0:08:19]} 7. exf5 {[%emt 0:25:18]} (7. Qh5+ $11 g6 8. Qe2) 7... Qh4+ $17 {[%emt 0:02:31]} 8. Kd2 {[%emt 0:01:45] Black is better.} Bxf5 {[%emt 0:00:27]} 9. Qf3 {[%emt 0:07:17]} Nc6 {[%emt 0:01:08]} 10. g3 {[%emt 0:07:59]} (10. Kc2 $142) 10... Qe7 {[%emt 0:04:57] Black is more active.} 11. Qxf4 {[%emt 0:08:15]} (11. gxf4 $17 {is a better defense.} Nf6 12. Qe2) 11... Qd7 {[%emt 0:03:30] Strongly threatening ...Nge7.} 12. Nf3 {[%emt 0:04:55]} Nge7 {[%emt 0:02:36][%cal Bg8e7,Be7g6,Bg6e5,Be5c4][%mdl 32] Hoping for ...0-0.} 13. Bg2 $2 {[%emt 0:00:51]} (13. Nh4 {was the crucial defense.}) 13... O-O $19 {[%emt 0:02:13] White must now prevent ...Bh3.} 14. Qe3 {[%emt 0:01:17]} Ng6 {[%emt 0:02:36]} 15. Nd4 {[%emt 0:07:56]} Rae8 {[%emt 0:01:44]} 16. Nxf5 {[%emt 0:06:37] Threatens to win with Be4.} Rxf5 {[%emt 0:16:55]} (16... Rxe3 $142 17. Nxe3 Rf2+ 18. Ke1 Rxg2 $1 {[%mdl 512]} 19. Nxg2 Nce5) 17. Be4 {[%emt 0:00:48] [#] Against Qxf5} Rfe5 {[%emt 0:00:04]} 18. Bb2 {[%emt 0:01:58] [#]} (18. Re1 $142) 18... Rxe4 $1 {[%emt 0:00:55][%mdl 512]} 19. dxe4 {[%emt 0:00:06]} Nge5 {[%emt 0:00:09]} 20. Qe2 {[%emt 0:02:06]} Na5 {[%emt 0:00:25]} 21. a4 {[%emt 0:00:25]} (21. Ke1 $142) 21... Qc6 {[%emt 0:00:26]} 22. Kc2 {[%emt 0:00:48]} Nexc4 {[%emt 0:02:38] Pair of Knights!} 23. Rhe1 $2 {[%emt 0:00:35]} (23. Bc1 d5 24. Ra2) 23... Qb6 {[%emt 0:00:23]} 24. Ra2 {[%emt 0:01:46]} Rf8 {[%emt 0:00:20] White did not feel at home in the position after the opening.  Weighted Error Value: White=0.98/Black=0.30} 0-1

[Event "Croatian Team Cup Final 2022"]
[Site "Vodice"]
[Date "2022.05.22"]
[Round "6.21"]
[White "Fercec, Nenad"]
[Black "Tomulic, Teo"]
[Result "1/2-1/2"]
[ECO "C78"]
[WhiteElo "2415"]
[BlackElo "2347"]
[Annotator "TA"]
[PlyCount "60"]
[EventDate "2022.05.18"]
[EventType "team-tourn"]
[EventCountry "CRO"]
[SourceTitle "playchess.com"]
[Source "ChessBase"]
[SourceQuality "1"]
[TimeControl "40/5400+30:1800+30"]

{[%evp 12,60,12,8,24,9,35,0,10,-4,4,12,14,-8,0,0,6,8,14,12,7,18,21,7,10,0,7,0,0,0,0,0,10,0,18,13,0,0,0,0,0,0,0,0,0,0,0,0,0,0,0]} 1. e4 {[%emt 0:04:31]} e5 {[%emt 0:00:06]} 2. Nf3 {[%emt 0:00:06]} Nc6 {[%emt 0:00:02]} 3. Bb5 {[%emt 0:00:24][%cal Bf1b5,Bb5a4,Ba4b3][%mdl 32]} a6 {[%emt 0:00:04]} 4. Ba4 {[%emt 0:00:05]} Nf6 {[%emt 0:00:04]} 5. d3 {[%emt 0:00:44]} Bc5 {[%emt 0:00:18]} 6. O-O {[%emt 0:01:01]} d6 {[%emt 0:06:42]} 7. c3 {[%emt 0:02:51]} b5 {[%emt 0:06:16] C78: Ruy Lopez: Archangelsk and Möller Defences.} 8. Bb3 {[%emt 0:01:14]} Bb6 {[%emt 0:06:25] 8...h6 is becoming the main line.} 9. h3 {[%emt 0:00:09]} (9. a4 $5 {[%cal Ra4b5]}) 9... h6 {[%emt 0:00:46] The position is equal.} 10. Be3 {[%emt 0:02:18]} Rb8 {[%emt 0:02:40]} 11. Bxb6 {[%emt 0:07:38]} Rxb6 {[%emt 0:00:27] [#]} 12. Nbd2 $146 {[%emt 0:00:06][%cal Bb1d2,Bd2f1,Bf1e3][%mdl 32]} ({Predecessor:} 12. Re1 O-O 13. Nbd2 Ne7 14. d4 Ng6 15. Nf1 Qe7 16. Ng3 Nf4 17. Qd2 N6h5 18. Rad1 {1-0 (42) Dietz,F (2142)-Tham,N (1836) Germany 2019}) 12... O-O {[%emt 0:04:25]} 13. d4 {[%emt 0:07:06]} Re8 {[%emt 0:03:24]} 14. Re1 {[%emt 0:05:30]} Bd7 {[%emt 0:06:42]} 15. Bc2 {[%emt 0:11:08]} Rb8 {[%emt 0:02:14]} 16. Nf1 {[%emt 0:06:04]} Nh7 {[%emt 0:07:00]} 17. dxe5 {[%emt 0:05:51]} (17. Qd3 {looks sharper.} exd4 18. e5 Nf8 19. exd6 Rxe1 20. Rxe1 dxc3 21. dxc7 Qxc7 22. Qxc3 Rc8 23. Ne3) 17... Nxe5 {[%emt 0:03:34]} 18. Nxe5 {[%emt 0:02:03]} dxe5 {[%emt 0:02:37]} 19. Ne3 {[%emt 0:01:00]} Nf6 {[%emt 0:02:25]} 20. Qf3 {[%emt 0:03:06]} Qe7 {[%emt 0:05:03]} 21. Bb3 {[%emt 0:04:22]} Rbd8 {[%emt 0:00:55]} 22. Rad1 {[%emt 0:02:34]} Bc8 {[%emt 0:01:10]} 23. Nd5 {[%emt 0:08:01]} Nxd5 {[%emt 0:00:38]} 24. Bxd5 {[%emt 0:00:07]} Rd6 {[%emt 0:00:35]} 25. Bb3 {[%emt 0:00:45]} Red8 {[%emt 0:01:14]} 26. Rxd6 {[%emt 0:00:12]} Rxd6 {[%emt 0:00:04]} 27. Rd1 {[%emt 0:00:12]} Be6 {[%emt 0:01:40]} 28. Bxe6 {[%emt 0:00:33]} Qxe6 {[%emt 0:00:18]} 29. Rxd6 {[%emt 0:00:05]} Qxd6 {[%emt 0:00:24]} 30. Qe2 {[%emt 0:00:07] Inhibits Qd2.} Kf8 {[%emt 0:00:39] Not much happened in this game.  Weighted Error Value: White=0.04 (flawless) /Black=0.06 (flawless)} 1/2-1/2